bitfinex/quotes_SOLUSD_20250726
["timestamp","ask_amount","ask_price","bid_price","bid_amount"]
[1753537908322,0.03,187.88,187.87,9.19227273]
[1753537908887,0.03,187.88,187.87,6.07282961]
[1753537909090,0.03,187.88,187.87,9.19227273]
[1753537909719,0.03,187.88,187.87,6.07282961]
[1753537912105,0.03,187.88,187.87,9.19227273]
[1753537914318,0.03,187.91,187.87,24.00354677]
[1753537914513,0.03,187.91,187.9,3.11944312]
[1753537915013,0.03,187.91,187.9,3.82944312]
[1753537916122,0.03,187.91,187.9,9.15142289]
[1753537917624,0.03,187.91,187.9,6.03197977]
[1753537917828,0.03,187.91,187.9,9.15142289]
[1753537918495,0.03,187.91,187.9,6.03197977]
[1753537918915,0.03,187.91,187.9,9.15142289]
[1753537920198,0.03,187.91,187.88,5.3225463]
[1753537920404,0.03,187.91,187.89,3.11944312]
[1753537920825,0.03,187.91,187.89,3.82944312]
[1753537921723,0.03,187.91,187.88,5.3225463]
[1753537921929,0.03,187.91,187.88,6.0325463]
[1753537922111,0.74,187.91,187.88,9.15198942]
[1753537923204,0.03,187.91,187.88,8.44198942]
[1753537923405,0.03,187.91,187.89,6.03218829]
[1753537924111,1.27129316,187.91,187.87,3.88944312]
[1753537924408,0.71,187.9,187.87,3.88944312]
[1753537924800,1.27129316,187.91,187.87,3.88944312]
[1753537925037,1.27129316,187.91,187.87,8.50217748]
[1753537925231,1.27129316,187.91,187.88,0.71]
[1753537925401,1.27129316,187.91,187.88,6.03232323]
[1753537926521,0.03,187.91,187.89,0.71]
[1753537927405,0.03,187.91,187.9,0.71]
[1753537929122,0.03,187.91,187.89,5.32214764]
[1753537929319,0.03,187.91,187.89,6.03214764]
[1753537931533,0.03,187.91,187.9,0.71]
[1753537933518,0.03,187.91,187.88,5.3225463]
[1753537933708,0.03,187.91,187.89,0.71]
[1753537935220,0.56129316,187.91,187.89,0.71]
[1753537935421,1.27129316,187.91,187.88,6.0325463]
[1753537935730,0.03,187.91,187.89,0.71]
[1753537937120,0.03,187.91,187.89,6.03220543]
[1753537943340,0.03,187.91,187.89,0.71]
[1753537943534,0.74,187.91,187.88,6.03251114]
[1753537944447,3.11944312,187.89,187.87,0.06]
[1753537944617,0.53129316,187.89,187.87,0.06]
[1753537944821,1.21129316,187.9,187.87,6.06282548]
[1753537947347,4.33073628,187.9,187.87,0.74]
[1753537947564,0.68,187.89,187.87,0.06]
[1753537947851,0.53129316,187.88,187.87,0.06]
[1753537951050,0.53129316,187.89,187.87,0.74]
[1753537955047,6.72462123,187.91,187.88,3.11944312]
[1753537955048,0.03,187.91,187.88,3.11944312]
[1753537955351,0.03,187.91,187.89,6.00222297]
[1753537955742,0.03,187.91,187.9,0.68]
[1753537956358,0.03,187.91,187.9,3.79944312]
[1753537957565,0.03,187.91,187.9,9.12142289]
[1753537958432,0.71,187.91,187.88,5.32233273]
[1753537958956,0.71,187.91,187.88,6.00233273]
[1753537959540,4.33073628,187.9,187.87,0.06]
[1753537959758,0.68,187.89,187.87,0.06]
[1753537961761,0.53129316,187.9,187.87,0.06]
[1753537961955,0.68,187.9,187.87,0.74]
[1753537962161,3.68073628,187.91,187.88,0.68]
[1753537962162,0.56129316,187.91,187.88,0.68]
[1753537962866,0.03,187.91,187.89,0.68]
[1753537963361,0.03,187.91,187.9,0.68]
[1753537964234,0.03,187.91,187.9,6.00197977]
[1753537977577,0.73,187.91,187.88,0.06]
[1753537977872,4.89887349,187.91,187.88,0.06]
[1753537978047,0.7,187.9,187.88,0.06]
[1753537981672,0.7,187.89,187.88,0.06]
[1753537984771,0.7,187.9,187.88,0.06]
[1753537991060,0.7,187.89,187.88,0.06]
[1753537992871,4.34869079,187.89,187.88,0.06]
[1753537993870,9.67095381,187.89,187.88,0.06]
[1753537994069,13.24928572,187.89,187.88,0.06]
[1753537994280,4.80962507,187.89,187.88,0.06]
[1753537994596,7.9270227,187.89,187.88,0.06]
[1753537994892,4.80962507,187.89,187.88,0.06]
[1753537995097,4.34869079,187.89,187.88,0.06]
[1753538004092,7.92567987,187.89,187.88,0.06]
[1753538004290,30.03262686,187.89,187.88,0.06]
[1753538014792,177.63262686,187.89,187.88,0.06]
[1753538015006,177.1013337,187.89,187.88,0.06]
[1753538015779,42.78468397,187.85,187.84,0.06]
[1753538015984,86.59907068,187.85,187.84,0.06]
[1753538016202,87.29907068,187.85,187.84,0.06]
[1753538016804,92.622467,187.85,187.84,0.06]
[1753538018798,95.4002702,187.85,187.84,0.06]
[1753538020102,94.7002702,187.85,187.84,0.06]
[1753538020414,95.23156336,187.85,187.84,0.06]
[1753538020788,95.93156336,187.85,187.84,0.06]
[1753538032223,95.23156336,187.85,187.84,0.06]
[1753538033213,95.4002702,187.85,187.84,0.06]
[1753538034827,92.622467,187.85,187.84,0.06]
[1753538035827,91.922467,187.85,187.84,0.06]
[1753538036028,92.45376016,187.85,187.84,0.06]
[1753538036410,93.12376016,187.85,187.84,0.06]
[1753538036624,92.45376016,187.85,187.84,0.06]
[1753538036830,92.45376016,187.85,187.84,0.78]
[1753538037024,91.922467,187.85,187.84,0.78]
[1753538038136,91.922467,187.85,187.84,0.06]
[1753538038521,92.592467,187.85,187.84,0.06]
[1753538040821,95.37022423,187.85,187.84,0.06]
[1753538042936,95.37022423,187.85,187.83,0.06]
[1753538042937,16.78468397,187.84,187.83,0.06]
[1753538043238,28.64950983,187.84,187.83,0.06]
[1753538043442,33.97318955,187.84,187.83,0.06]
[1753538044235,30.00404356,187.84,187.83,0.06]
[1753538045225,26.0,187.82,187.81,0.06]
[1753538045427,70.32567987,187.82,187.81,0.06]
[1753538046336,75.64992648,187.82,187.81,0.06]
[1753538047132,16.78468397,187.81,187.8,0.06]
[1753538047340,16.78468397,187.77,187.76,0.78]
[1753538047515,61.11055966,187.77,187.76,0.78]
[1753538048232,66.43622403,187.77,187.76,0.06]
[1753538048419,67.10755119,187.77,187.76,0.06]
[1753538048831,66.43755119,187.77,187.76,0.06]
[1753538049232,70.64516994,187.77,187.76,0.06]
[1753538049621,66.43755119,187.77,187.76,0.06]
[1753538050839,67.10755119,187.77,187.76,0.06]
[1753538051941,66.43755119,187.77,187.76,0.06]
[1753538052742,4.10980522,187.77,187.76,0.78]
[1753538053050,45.563062,187.77,187.76,0.78]
[1753538053918,62.34774597,187.77,187.76,0.78]
[1753538054115,92.45075502,187.77,187.76,0.06]
[1753538054533,67.12075502,187.77,187.76,0.06]
[1753538055829,26.0,187.71,187.7,0.72]
[1753538056042,66.76869079,187.71,187.7,0.72]
[1753538056720,68.53378541,187.71,187.7,0.72]
[1753538057731,73.86115209,187.71,187.7,0.72]
[1753538058543,68.53378541,187.71,187.7,0.72]
[1753538060348,73.86115209,187.71,187.7,0.72]
[1753538062352,68.53378541,187.71,187.7,0.72]
[1753538066565,37.12,187.71,187.7,10.93014275]
[1753538070065,37.12,187.71,187.7,5.60249225]
[1753538072551,37.12,187.71,187.7,10.93014275]
[1753538077965,37.12,187.71,187.7,5.60249225]
[1753538078546,37.82,187.71,187.68,7.6199]
[1753538078768,37.82,187.71,187.68,0.06]
[1753538079271,37.82,187.71,187.68,3.18386241]
[1753538079445,37.82,187.71,187.68,0.72]
[1753538080354,37.12,187.71,187.68,0.06]
[1753538080555,0.7,187.7,187.68,0.06]
[1753538080956,0.7,187.69,187.68,0.06]
[1753538083556,0.53129316,187.7,187.68,0.06]
[1753538083753,1.23129316,187.7,187.68,0.06]
[1753538088269,53.69395693,187.69,187.68,0.06]
[1753538088571,48.81261832,187.69,187.68,0.06]
[1753538088745,53.69395693,187.69,187.68,0.06]
[1753538089978,57.27081385,187.69,187.68,0.06]
[1753538090475,52.38947524,187.69,187.68,0.06]
[1753538090781,57.27081385,187.69,187.68,0.06]
[1753538090957,94.37081385,187.69,187.68,0.06]
[1753538091464,94.37115568,187.69,187.68,0.06]
[1753538093075,90.79395693,187.69,187.68,0.06]
[1753538093779,85.91261832,187.69,187.68,0.06]
[1753538093977,37.63129316,187.69,187.68,0.72]
[1753538094168,37.1,187.69,187.68,0.72]
[1753538097682,37.1,187.69,187.68,5.60133861]
[1753538097979,37.1,187.69,187.68,10.92955685]
[1753538098182,37.1,187.69,187.68,6.04821824]
[1753538098385,3.3107314,187.73,187.68,10.92955685]
[1753538098680,37.1,187.72,187.7,4.88133861]
[1753538099074,37.1,187.72,187.71,0.66]
[1753538099273,37.1,187.72,187.7,4.88133861]
[1753538099469,37.1,187.72,187.7,5.54133861]
[1753538099670,37.1,187.72,187.69,4.88133861]
[1753538099871,37.76,187.72,187.69,5.54133861]
[1753538101489,37.1,187.72,187.7,0.66]
[1753538103176,37.1,187.72,187.7,5.54133861]
[1753538103884,37.1,187.72,187.71,0.66]
[1753538104474,37.1,187.72,187.7,4.88133861]
[1753538104688,37.1,187.72,187.7,5.54133861]
[1753538107992,37.1,187.72,187.7,0.66]
[1753538108197,37.1,187.72,187.7,5.54133861]
[1753538110803,37.1,187.72,187.7,3.78302098]
[1753538111677,37.1,187.72,187.7,0.66]
[1753538111878,37.1,187.72,187.7,3.78302098]
[1753538112379,37.1,187.72,187.71,3.78302098]
[1753538113698,37.08,187.73,187.71,9.11038766]
[1753538113903,37.08,187.73,187.72,3.12302098]
[1753538114100,37.08,187.73,187.72,3.78302098]
[1753538114799,37.08,187.73,187.72,5.53786177]
[1753538116702,37.08,187.73,187.72,4.87786177]
[1753538118101,37.08,187.73,187.71,5.32736668]
[1753538118286,37.08,187.73,187.72,4.87786177]
[1753538119188,37.74,187.73,187.69,0.66]
[1753538119388,0.66,187.72,187.71,4.87786177]
[1753538119904,37.74,187.73,187.71,4.87786177]
[1753538120912,37.74,187.73,187.7,4.87786177]
[1753538121497,0.66,187.72,187.7,4.87786177]
[1753538121805,0.66,187.72,187.69,4.87786177]
[1753538121996,0.66,187.71,187.69,4.87786177]
[1753538123222,37.08,187.73,187.7,4.87786177]
[1753538123396,0.66,187.72,187.7,4.87786177]
[1753538124396,37.79,187.73,187.7,4.87786177]
[1753538126219,0.71,187.72,187.69,0.72]
[1753538126393,0.71,187.72,187.69,4.93786177]
[1753538127235,42.93812491,187.73,187.69,4.93786177]
[1753538127410,0.71,187.71,187.69,4.93786177]
[1753538132931,1.24129316,187.72,187.69,4.93786177]
[1753538133130,1.24129316,187.72,187.69,5.62786177]
[1753538134718,1.24129316,187.72,187.69,3.87330925]
[1753538137330,37.61129316,187.73,187.7,3.81330925]
[1753538137526,37.61129316,187.73,187.7,3.12330925]
[1753538137846,37.61129316,187.73,187.71,0.69]
[1753538138929,37.61129316,187.73,187.71,3.12330925]
[1753538139111,37.08,187.73,187.72,3.81330925]
[1753538141935,37.08,187.73,187.72,0.69]
[1753538142114,37.08,187.73,187.72,3.81330925]
[1753538144128,37.08,187.73,187.72,3.12330925]
[1753538144334,37.79,187.73,187.72,3.12330925]
[1753538146720,0.53129316,187.75,187.72,3.81330925]
[1753538146917,37.06,187.74,187.73,0.69]
[1753538147242,37.06,187.74,187.73,3.81330925]
[1753538149246,37.06,187.74,187.73,3.12330925]
[1753538155348,37.73,187.74,187.71,3.12330925]
[1753538155521,37.73,187.74,187.71,3.83330925]
[1753538156145,37.73,187.74,187.72,3.12330925]
[1753538156948,37.73,187.74,187.71,3.83330925]
[1753538160647,37.73,187.74,187.72,3.12330925]
[1753538161964,37.73,187.74,187.71,0.71]
[1753538162133,37.73,187.74,187.71,3.83330925]
[1753538163751,37.73,187.74,187.71,0.71]
[1753538163932,37.06,187.74,187.71,3.12330925]
[1753538164253,0.67,187.73,187.7,3.12330925]
[1753538164422,37.06,187.72,187.7,3.12330925]
[1753538164848,37.73,187.72,187.7,3.12330925]
[1753538165541,0.67,187.71,187.69,3.18330925]
[1753538166553,37.06,187.72,187.69,3.89330925]
[1753538166758,37.73,187.72,187.69,3.89330925]
[1753538167429,37.06,187.72,187.69,3.18330925]
[1753538167631,0.67,187.71,187.7,3.12330925]
[1753538167933,37.06,187.72,187.7,3.12330925]
[1753538168135,37.73,187.72,187.69,0.06]
[1753538168341,37.73,187.72,187.7,3.12330925]
[1753538169138,37.73,187.72,187.7,3.18330925]
[1753538169848,37.73,187.72,187.7,0.06]
[1753538170155,37.73,187.72,187.7,3.18330925]
[1753538170369,37.06,187.72,187.7,3.18330925]
[1753538170555,37.06,187.72,187.7,3.89330925]
[1753538170754,37.06,187.72,187.7,0.77]
[1753538170940,37.06,187.72,187.71,3.12330925]
[1753538172253,0.53129316,187.74,187.71,3.83330925]
[1753538172444,0.03,187.76,187.73,3.12330925]
[1753538172749,37.04,187.75,187.74,3.12330925]
[1753538173349,37.71,187.75,187.73,3.12330925]
[1753538173557,37.04,187.75,187.73,3.12330925]
[1753538173864,0.67,187.74,187.73,3.12330925]
[1753538174259,0.67,187.74,187.72,3.12330925]
[1753538174663,0.67,187.73,187.71,3.12330925]
[1753538174965,0.67,187.72,187.7,3.18330925]
[1753538175348,0.67,187.73,187.7,3.18330925]
[1753538175553,0.67,187.73,187.7,3.89330925]
[1753538176054,0.53129316,187.73,187.7,0.06]
[1753538176367,37.71,187.72,187.7,3.18330925]
[1753538176568,37.04,187.72,187.7,3.89330925]
[1753538176767,37.04,187.72,187.71,3.12330925]
[1753538180377,37.71,187.72,187.7,3.18330925]
[1753538182969,37.71,187.72,187.7,3.18330925]
[1753538183660,37.04,187.72,187.7,3.89330925]
[1753538183972,37.04,187.72,187.7,9.22085479]
[1753538184167,37.04,187.72,187.71,3.12330925]
[1753538184650,37.74,187.72,187.71,3.12330925]
[1753538186571,37.04,187.72,187.71,3.12330925]
[1753538188577,37.04,187.72,187.71,3.78330925]
[1753538189160,37.04,187.72,187.71,3.12330925]
[1753538191264,37.04,187.72,187.71,3.78330925]
[1753538191854,37.04,187.72,187.71,9.11067593]
[1753538192056,37.04,187.74,187.71,9.11067593]
[1753538192378,1.26129316,187.76,187.71,9.11067593]
[1753538192379,0.03,187.76,187.73,3.12330925]
[1753538192671,0.03,187.76,187.75,3.12330925]
[1753538197371,0.03,187.76,187.75,3.78330925]
[1753538199680,0.03,187.76,187.75,0.66]
[1753538199863,0.03,187.76,187.75,3.78330925]
[1753538201197,0.03,187.76,187.75,0.66]
[1753538201365,0.03,187.76,187.75,3.78330925]
[1753538204921,0.03,187.76,187.75,9.10954094]
[1753538211405,0.03,187.76,187.75,9.16954094]
[1753538213122,0.03,187.76,187.75,6.04623169]
[1753538213302,0.03,187.76,187.75,9.16954094]
[1753538216725,0.03,187.76,187.75,46.18954094]
[1753538216923,0.03,187.76,187.75,46.7221641]
[1753538217224,0.03,187.76,187.75,72.7221641]
[1753538224330,0.03,187.76,187.75,73.00648724]
[1753538228130,0.03,187.76,187.75,71.52954094]
[1753538228533,0.03,187.76,187.75,72.20954094]
[1753538230338,0.03,187.76,187.75,72.7421641]
[1753538230635,0.03,187.8,187.75,86.34206646]
[1753538230812,0.03,187.8,187.79,3.12330925]
[1753538231012,0.03,187.8,187.79,40.12330925]
[1753538231210,0.03,187.8,187.79,45.44840643]
[1753538232950,0.03,187.8,187.79,46.12840643]
[1753538234649,0.03,187.8,187.79,45.44840643]
[1753538236168,0.03,187.8,187.79,46.12840643]
[1753538238118,0.03,187.8,187.79,45.44840643]
[1753538239018,0.03,187.8,187.79,46.12840643]
[1753538245783,0.72,187.8,187.79,45.44840643]
[1753538246160,0.03,187.8,187.79,45.44840643]
[1753538246391,0.03,187.8,187.79,5.32509718]
[1753538246555,0.72,187.8,187.79,45.44840643]
[1753538247570,0.03,187.8,187.79,45.44840643]
[1753538251082,0.72,187.8,187.79,3.12330925]
[1753538251280,0.72,187.8,187.77,8.44877849]
[1753538251486,0.72,187.8,187.78,37.0]
[1753538251673,0.72,187.8,187.77,45.44877849]
[1753538253189,0.72,187.8,187.77,42.32546924]
[1753538253785,0.03,187.8,187.79,3.12330925]
[1753538253968,0.03,187.8,187.79,40.12330925]
[1753538254164,0.03,187.8,187.79,40.82330925]
[1753538255266,0.03,187.8,187.79,46.14840643]
[1753538257482,0.03,187.8,187.79,45.44840643]
[1753538259004,0.03,187.8,187.79,46.14840643]
[1753538259373,0.03,187.84,187.82,26.0]
[1753538259572,0.03,187.84,187.83,40.65570556]
[1753538260097,0.03,187.84,187.83,41.35570556]
[1753538260491,0.03,187.84,187.83,46.67966871]
[1753538260888,0.03,187.84,187.83,42.85635946]
[1753538261103,0.03,187.84,187.83,47.19551847]
[1753538261796,0.72,187.84,187.81,41.87155532]
[1753538262497,0.03,187.84,187.81,4.87155532]
[1753538262683,0.69,187.83,187.81,4.87155532]
[1753538262996,0.69,187.83,187.82,4.87155532]
[1753538264782,0.69,187.83,187.81,10.19601192]
[1753538265392,0.69,187.82,187.81,5.3244566]
[1753538265593,0.69,187.82,187.81,4.87155532]
[1753538271721,0.69,187.82,187.79,4.87155532]
[1753538271882,0.69,187.82,187.78,47.17689698]
[1753538273039,0.69,187.82,187.79,4.87155532]
[1753538273797,0.69,187.81,187.79,4.87155532]
[1753538276598,0.75,187.82,187.79,4.87155532]
[1753538276819,0.75,187.82,187.79,5.53155532]
[1753538279319,0.03,187.82,187.8,5.53155532]
[1753538279512,0.03,187.82,187.81,0.66]
[1753538279712,0.03,187.82,187.81,5.53155532]
[1753538280801,0.03,187.82,187.81,0.66]
[1753538289911,0.03,187.82,187.8,5.32456812]
[1753538290111,0.03,187.82,187.8,5.98456812]
[1753538291509,0.75,187.82,187.79,5.32504714]
[1753538292538,0.75,187.82,187.76,124.44]
[1753538292539,0.72,187.81,187.76,26.72]
[1753538292743,3.11932517,187.79,187.76,0.06]
[1753538293115,0.72,187.78,187.76,0.06]
[1753538293315,4.37061833,187.78,187.76,0.06]
[1753538293722,0.72,187.77,187.76,0.06]
[1753538296738,0.72,187.78,187.76,0.06]
[1753538298354,12.43943856,187.81,187.77,0.66]
[1753538298524,1.25129316,187.8,187.77,0.66]
[1753538299514,0.53129316,187.8,187.76,0.06]
[1753538299749,0.72,187.79,187.76,0.06]
[1753538300623,2.76819316,187.81,187.77,0.66]
[1753538301012,0.72,187.8,187.77,0.66]
[1753538301427,0.72,187.79,187.76,0.06]
[1753538302010,0.72,187.79,187.76,0.72]
[1753538302216,0.72,187.79,187.76,0.06]
[1753538302217,5.4092806,187.78,187.76,0.06]
[1753538302532,0.72,187.77,187.76,0.06]
[1753538302728,5.59798744,187.77,187.76,0.06]
[1753538303116,22.91396457,187.77,187.76,0.06]
[1753538304035,28.23962894,187.77,187.76,0.06]
[1753538304545,65.21962894,187.77,187.76,0.06]
[1753538313636,60.3416415,187.77,187.76,0.06]
[1753538313830,65.21962894,187.77,187.76,0.06]
[1753538314647,68.78693944,187.77,187.76,0.06]
[1753538319650,42.78468397,187.76,187.75,0.06]
[1753538319856,51.88998191,187.76,187.75,0.06]
[1753538320043,51.22998191,187.76,187.75,0.06]
[1753538320252,51.88998191,187.76,187.75,0.06]
[1753538320758,59.99522307,187.76,187.75,0.06]
[1753538324055,56.42791257,187.76,187.75,0.06]
[1753538326641,33.98852365,187.76,187.75,0.06]
[1753538327456,30.42791257,187.76,187.75,0.06]
[1753538328265,33.98882701,187.76,187.75,0.06]
[1753538328758,32.23512909,187.76,187.75,0.06]
[1753538328964,28.01421465,187.76,187.75,0.06]
[1753538331363,28.67421465,187.76,187.75,0.06]
[1753538331939,32.23723419,187.76,187.75,0.06]
[1753538333367,31.57723419,187.76,187.75,0.06]
[1753538336357,28.45294467,187.76,187.75,0.06]
[1753538336557,31.57723419,187.76,187.75,0.06]
[1753538337861,11.6682607,187.76,187.75,0.76]
[1753538338060,11.22953068,187.76,187.75,0.76]
[1753538343458,11.25953068,187.76,187.75,0.76]
[1753538343658,8.13524116,187.76,187.75,0.76]
[1753538343979,11.25953068,187.76,187.75,0.76]
[1753538346308,14.8364111,187.76,187.75,0.76]
[1753538347465,9.51046309,187.76,187.75,0.76]
[1753538347668,11.71212158,187.76,187.75,0.76]
[1753538349883,6.38617357,187.76,187.75,0.76]
[1753538354781,11.71212158,187.76,187.75,0.76]
[1753538354989,11.71212158,187.76,187.75,0.06]
[1753538357575,14.8364111,187.76,187.75,0.06]
[1753538359502,11.71212158,187.76,187.75,0.06]
[1753538359802,6.38617357,187.76,187.75,0.76]
[1753538359977,0.03,187.76,187.75,0.76]
[1753538364327,0.03,187.76,187.75,6.08623169]
[1753538364523,0.03,187.76,187.75,9.21052121]
[1753538371705,0.03,187.76,187.75,0.06]
[1753538372500,0.03,187.76,187.75,3.18428952]
[1753538372693,0.03,187.76,187.75,3.88428952]
[1753538373087,0.03,187.76,187.75,0.06]
[1753538373296,0.03,187.76,187.75,3.18428952]
[1753538374815,0.03,187.76,187.75,4.93680658]
[1753538375795,0.73,187.76,187.75,0.06]
[1753538375995,5.60680658,187.76,187.75,0.06]
[1753538377095,10.93275459,187.76,187.75,0.06]
[1753538387022,6.05594801,187.76,187.75,0.06]
[1753538387325,10.93275459,187.76,187.75,0.06]
[1753538387711,10.23275459,187.76,187.75,0.06]
[1753538388339,10.93275459,187.76,187.75,0.06]
[1753538390542,0.03,187.76,187.75,0.76]
[1753538390713,0.03,187.76,187.75,5.63680658]
[1753538394937,0.03,187.76,187.75,10.96303827]
[1753538396241,0.03,187.76,187.75,5.63680658]
[1753538400325,0.03,187.76,187.75,10.96303827]
[1753538400731,0.03,187.76,187.75,9.20591988]
[1753538400945,0.03,187.76,187.75,9.73854304]
[1753538402836,0.03,187.76,187.75,11.49338256]
[1753538404437,0.03,187.76,187.75,10.9607594]
[1753538414961,0.03,187.76,187.75,10.2607594]
[1753538421171,0.03,187.76,187.75,10.9707594]
[1753538424863,0.03,187.76,187.75,9.21661252]
[1753538430462,0.03,187.76,187.75,46.17661252]
[1753538432360,0.03,187.76,187.75,46.46093566]
[1753538434297,0.03,187.76,187.75,133.86093566]
[1753538440279,0.03,187.76,187.75,133.15093566]
[1753538440704,0.03,187.76,187.75,133.81093566]
[1753538444775,0.03,187.76,187.75,132.86661252]
[1753538445085,0.03,187.76,187.75,133.52661252]
[1753538445891,0.03,187.76,187.75,46.12661252]
[1753538457210,0.03,187.76,187.75,45.46661252]
[1753538458795,0.03,187.76,187.75,46.15661252]
[1753538462405,0.03,187.76,187.75,45.46661252]
[1753538462605,0.03,187.76,187.75,46.15661252]
[1753538463716,0.03,187.76,187.75,45.46661252]
[1753538465032,0.03,187.76,187.75,5.38623169]
[1753538465320,0.74,187.76,187.75,45.44661252]
[1753538467819,0.03,187.76,187.75,45.44661252]
[1753538468697,0.03,187.76,187.75,8.50661252]
[1753538468902,0.03,187.76,187.75,46.13661252]
[1753538474407,0.74,187.76,187.75,45.44661252]
[1753538478135,0.74,187.76,187.75,0.06]
[1753538478336,10.71322884,187.76,187.75,0.06]
[1753538478637,16.78468397,187.75,187.72,0.06]
[1753538478814,3.12038083,187.73,187.71,0.06]
[1753538479012,3.65167399,187.72,187.71,0.06]
[1753538479222,4.36167399,187.72,187.71,0.06]
[1753538481239,9.68875687,187.72,187.71,0.06]
[1753538484714,34.58244084,187.72,187.71,0.06]
[1753538484915,38.15283206,187.72,187.71,0.06]
[1753538485151,34.58244084,187.72,187.71,0.06]
[1753538486125,71.54244084,187.72,187.71,0.06]
[1753538491428,42.78468397,187.71,187.7,0.06]
[1753538491635,59.06658812,187.71,187.7,0.06]
[1753538491832,46.5850648,187.71,187.7,0.06]
[1753538492548,64.3939548,187.71,187.7,0.06]
[1753538493366,51.91243148,187.71,187.7,0.06]
[1753538494248,38.3939548,187.71,187.7,0.06]
[1753538494556,38.3939548,187.71,187.69,0.06]
[1753538494750,33.59788128,187.7,187.69,0.06]
[1753538495530,38.92553178,187.7,187.69,0.06]
[1753538497063,75.94553178,187.7,187.69,0.06]
[1753538497263,16.78468397,187.69,187.67,0.06]
[1753538497430,57.45635796,187.68,187.67,0.06]
[1753538497630,58.13635796,187.68,187.67,0.06]
[1753538498448,60.34419537,187.68,187.67,0.06]
[1753538498653,63.4645762,187.68,187.67,0.06]
[1753538498836,66.24482565,187.68,187.67,0.06]
[1753538501533,70.1887669,187.68,187.67,0.06]
[1753538502241,73.73722314,187.68,187.67,0.06]
[1753538502657,16.78468397,187.67,187.66,0.06]
[1753538502838,20.5850648,187.67,187.66,0.06]
[1753538503357,56.9250648,187.67,187.66,0.06]
[1753538503566,57.6050648,187.67,187.66,0.06]
[1753538504646,62.93356695,187.67,187.66,0.06]
[1753538506954,66.87502173,187.67,187.66,0.06]
[1753538507533,68.51342173,187.67,187.66,0.06]
[1753538507934,68.51342173,187.67,187.64,0.06]
[1753538508162,52.44514406,187.66,187.64,0.06]
[1753538508334,42.78468397,187.65,187.64,0.06]
[1753538508654,82.9250648,187.65,187.64,0.06]
[1753538510655,88.25413487,187.65,187.64,0.06]
[1753538511159,88.93413487,187.65,187.64,0.06]
[1753538511947,92.87552017,187.65,187.64,0.06]
[1753538513034,92.17552017,187.65,187.64,0.72]
[1753538513468,92.17552017,187.65,187.64,0.06]
[1753538513846,239.77552017,187.65,187.64,0.06]
[1753538514346,240.45552017,187.65,187.64,0.06]
[1753538515142,244.00924685,187.65,187.64,0.06]
[1753538517463,244.00924685,187.65,187.63,0.06]
[1753538517763,28.61146994,187.64,187.63,0.06]
[1753538519074,31.39251144,187.64,187.63,0.06]
[1753538519473,36.72186552,187.64,187.63,0.06]
[1753538520565,36.04186552,187.64,187.63,0.06]
[1753538523008,36.72186552,187.64,187.63,0.06]
[1753538523201,41.19280778,187.64,187.63,0.06]
[1753538523703,26.0,187.57,187.56,0.2]
[1753538523905,90.95146994,187.57,187.56,0.2]
[1753538524113,53.93146994,187.57,187.56,0.2]
[1753538524410,91.03146994,187.57,187.56,0.2]
[1753538525093,96.3628129,187.57,187.56,0.2]